Cogmind - Beta 14 @@@ ROGUE MODE // 2024.09.11 @ 20:12:04 Player: raiguard Result: Destroyed by B-75 Beast with Magnetic Acceleration Cannon Performance ------------- Evolutions (2) 1000 Regions Visited (4) 800 Robots Destroyed (47) 235 Value Destroyed (1325) 1325 Prototype IDs (0) 0 Alien Tech Used (0) 0 Bonus (235) 235 TOTAL SCORE: 3595 Bonus ------- High Alert Combat Kills 35 Entered Garrisons 200 Cogmind --------- Core Integrity 0/550 Matter 51/300 Energy 100/100 System Corruption 0% Temperature Cool (12) Movement Core (400) Ox7 Location -8/Garrison Parts ------- > --- POWER (1) -------- (None) > --- PROPULSION (4) --- (None) > --- UTILITY (3) ------ Large Storage Unit Improved Terrain Scanner Improved Power Shielding > --- WEAPON (3) ------- (None) > --- INVENTORY (15) --- Titanium Leg Titanium Leg Titanium Leg Armored Wheel Large Storage Unit Improved Sensor Array Light Armor Plating Improved Datajack Peak State ------------ > --- POWER ------------ Improved Ion Engine > --- PROPULSION ------- Carbon-fiber Leg Titanium Leg Titanium Leg Titanium Leg > --- UTILITY ---------- Improved Heat Sink High-capacity Matter Pod Improved Sensor Array > --- WEAPON ----------- Light Assault Rifle Assault Cannon > --- INVENTORY -------- Improved Ion Engine Titanium Leg Light Assault Rifle Autogun [Rating: 25] Favorites ----------- Power Improved Ion Engine Engine Improved Ion Engine Power Core Light Nuclear Core Propulsion Light Treads Treads Light Treads Leg Titanium Leg Wheel Compact Wheel Utility Small Storage Unit Device Improved Sensor Array Storage Small Storage Unit Protection Power Shielding Weapon Rocket Launcher Energy Gun Medium Laser Ballistic Gun Light Assault Rifle Ballistic Cannon Assault Cannon Launcher Rocket Launcher Build | -11 -10 -9 -8 -8 ------- Run | Yrd Mat Mat Mat Gar Slots Evolved 4 | . . 2 2 . Power . | . . . . . Propulsion 2 | . . 1 1 . Utility 1 | . . 1 . . Weapon 1 | . . . 1 . Parts Attached 57 | 6 6 12 30 3 Power 8 | 1 1 1 5 . Engine 7 | 1 1 1 4 . Core 1 | . . . 1 . Reactor . | . . . . . Propulsion 16 | 2 2 3 9 . Treads 7 | 2 1 3 1 . Leg 8 | . 1 . 7 . Wheel 1 | . . . 1 . Hover . | . . . . . Flight . | . . . . . Utility 13 | 1 1 4 6 1 Device 4 | . 1 . 3 . Storage 5 | 1 . 1 3 . Processor . | . . . . . Hackware . | . . . . . Protection 4 | . . 3 . 1 Artifact . | . . . . . Weapon 20 | 2 2 4 10 2 Energy Gun 5 | 2 . 2 1 . Energy Cannon . | . . . . . Ballistic Gun 9 | . 1 2 5 1 Ballistic Cannon 1 | . . . 1 . Launcher 5 | . 1 . 3 1 Special Weapon . | . . . . . Impact Weapon . | . . . . . Slashing Weapon . | . . . . . Piercing Weapon . | . . . . . Special Melee Weapon . | . . . . . Unidentified Prototypes . | . . . . . Parts Lost 37 | . 5 7 17 8 Power 4 | . 2 . 1 1 Propulsion 14 | . 2 2 7 3 Utility 5 | . . 2 3 . Weapon 14 | . 1 3 6 4 Highest Loss Streak 10 | . 3 4 10 8 To Critical Strikes . | . . . . . Average Slot Usage (%) 76 | . 79 80 75 75 Engine 6 | . 9 5 6 . Core 2 | . . . 2 6 Treads 10 | . 22 24 4 . Leg 12 | . 2 3 16 20 Device 9 | . 1 6 12 9 Storage 10 | . 14 11 9 9 Protection 3 | . . 8 2 8 Energy Gun 3 | . 12 8 . . Ballistic Gun 9 | . 7 11 10 9 Ballistic Cannon 2 | . . . 3 . Launcher 6 | . 7 2 6 12 Peak Build Rating 25 | 6 6 12 25 24 Average Rating 14 | 5 5 8 18 20 On Entrance 9 | . 6 6 11 24 Naked Turns . | . . . . . Heaviest Build 39 | 12 12 21 38 39 Greatest Support 80 | 40 40 60 80 42 Greatest Overweight (x) 7 | 2 2 4 5 7 Average Overweight (x) . | . . . . . Largest Inventory Capacity 25 | 8 8 25 15 15 Average Capacity 7 | 7 8 8 6 15 Most Carried 9 | 6 8 8 8 9 Average Carried 5 | 3 6 7 5 8 Final Capacity 15 | 8 8 8 15 15 Final Carried 8 | 6 7 8 8 8 Class Distribution -------------------- 50% | Mutant 26% | Skirmisher 14% | Scavenger-Mutant 3% | Scavenger-Skirmisher Dominant Class ---------------- Mutant | -10/Materials Scavenger-Mutant | -9/Materials Skirmisher | -8/Materials Skirmisher | -8/Garrison Resources | -11 -10 -9 -8 -8 ----------- Run | Yrd Mat Mat Mat Gar Matter Collected 974 | 210 95 228 394 47 Remotely . | . . . . . Salvage Created 1248 | . 403 278 532 35 Parts 81 | . 24 18 36 3 Haulers Intercepted 2 | . 1 . 1 . Recyclers Shooed 1 | . 1 . . . Parts Field Recycled . | . . . . . Retrieved Matter . | . . . . . Parts Self-Destructed . | . . . . . Prevented . | . . . . . Kills | -11 -10 -9 -8 -8 ------- Run | Yrd Mat Mat Mat Gar Combat Hostiles Destroyed 34 | . 12 5 16 1 Melee 1 | . . . . 1 Guns 17 | . 7 4 6 . Cannons 3 | . . . 3 . AOE 13 | . 5 1 7 . Classes Destroyed 9 | . 5 1 3 . Worker 3 | . 1 1 1 . Builder 1 | . . . 1 . Tunneler 1 | . . . 1 . Hauler 2 | . 1 . 1 . Watcher 6 | . 1 1 4 . Swarmer 10 | . 3 . 7 . Grunt 14 | . 9 1 4 . Sentry 9 | . . 4 4 1 Hunter 1 | . . . 1 . Best Kill Streak 5 | . 4 2 5 1 Combat Bots Only 4 | . 4 1 3 1 Max Kills in Single Turn 3 | . 2 1 3 1 Gunslinging . | . . . . . Exploded 2 | . 2 1 1 . Melee 1 | . . . . 1 Uniques/NPCs Destroyed . | . . . . . Combat | -11 -10 -9 -8 -8 -------- Run | Yrd Mat Mat Mat Gar Hostile Shots Fired 428 | . 77 101 193 57 Missed 135 | . 22 25 67 21 Damage Taken 4379 | . 734 931 1795 919 Core 888 | . 172 142 362 212 Absorbed by Shields . | . . . . . Redirected to Shielding 111 | . . 9 45 57 Core Remaining (%) 65 | 100 31 64 . . Volleys Fired 105 | . 32 28 40 5 Largest 3 | . 2 2 3 3 Hottest 90 | . 90 73 89 89 Shots Fired 212 | . 59 49 94 10 Gun 167 | . 52 46 63 6 Cannon 11 | . . . 11 . Launcher 34 | . 7 3 20 4 Special . | . . . . . Kinetic 116 | . 12 28 70 6 Thermal 32 | . 20 12 . . Explosive 34 | . 7 3 20 4 Electromagnetic 30 | . 20 6 4 . Robot Hit Streak 29 | . 8 29 8 7 Robot Miss Streak 8 | . 3 2 8 1 Penetration Max . | . . . . . Secondary Targets . | . . . . . Shots Hit Robots 128 | . 30 39 51 8 Core Hits 92 | . 31 14 43 4 Critical Kills . | . . . . . Critical Parts Destroyed . | . . . . . Critical Strikes 2 | . . 1 1 . Burn 1 | . . 1 . . Blast 1 | . . . 1 . Melee Attacks . | . . . . . Impact . | . . . . . Slashing . | . . . . . Piercing . | . . . . . Sneak Attacks . | . . . . . Combat Hostiles . | . . . . . Follow-up Attacks . | . . . . . Damage Inflicted 3410 | . 1050 559 1614 187 Guns 1265 | . 307 428 469 61 Cannons 170 | . . . 170 . Explosions 1953 | . 743 127 963 120 Melee . | . . . . . Ramming 22 | . . 4 12 6 Kinetic 947 | . 54 238 594 61 Thermal 391 | . 266 125 . . Explosive 1809 | . 599 127 963 120 Electromagnetic 241 | . 131 65 45 . Impact . | . . . . . Slashing . | . . . . . Piercing . | . . . . . Highest Corruption . | . . . . . Average Corruption . | . . . . . Corruption Purged . | . . . . . Corruption Blocked . | . . . . . Overload Shots . | . . . . . Overflow Damage 38 | . 12 . 26 . Projectiles . | . . . . . Explosions 38 | . 12 . 26 . Melee . | . . . . . Knockbacks 2 | . . . 2 . Impact . | . . . . . Kinetic 2 | . . . 2 . Secondary . | . . . . . Self-Inflicted Damage 234 | . 92 12 77 53 Shots 12 | . 4 2 4 2 Rammed 10 | . . 3 7 . Targets Rammed 12 | . . 3 7 2 Kicked 2 | . . . . 2 Crushed . | . . . . . Highest Temperature 256 | . 256 54 179 28 Average Temperature 52 | . 83 10 34 11 Received Heat Transfer 1113 | . 324 261 414 114 Siege Activations . | . . . . . Robots Corrupted . | . . . . . Combat Hostiles . | . . . . . Parts Fried . | . . . . . Impact Corruptions . | . . . . . Robots Melted . | . . . . . Combat Hostiles . | . . . . . Parts Melted . | . . . . . Heat Transferred 1014 | . 570 444 . . Parts Sabotaged . | . . . . . Parts Stolen . | . . . . . Parts Stripped . | . . . . . Power Chain Reactions 1 | . 1 . . . Alert | -11 -10 -9 -8 -8 ------- Run | Yrd Mat Mat Mat Gar Peak Influence 535 | . 339 291 535 156 Initial 122 | . . 58 122 103 Average 237 | . 168 199 294 124 Maximum Alert Level 2 | . 1 1 2 . Low Security (%) 31 | 100 64 34 9 100 Level 1 63 | . 35 65 81 . Level 2 5 | . . . 9 . Level 3 . | . . . . . Level 4 . | . . . . . Level 5 . | . . . . . High Security . | . . . . . Max Security . | . . . . . Squads Dispatched 3 | . 1 1 1 . Investigation 1 | . 1 . . . Extermination . | . . . . . Reinforcement 2 | . . 1 1 . Assault . | . . . . . Garrison . | . . . . . Intercept . | . . . . . Searches Triggered . | . . . . . Construction Impeded 1 | . . . 1 . Haulers Reinforced . | . . . . . Active Scanning Responses . | . . . . . Cargo Convoy Interrupts . | . . . . . Stealth | -11 -10 -9 -8 -8 --------- Run | Yrd Mat Mat Mat Gar Distress Signals 7 | . 2 3 2 . Communications Jammed . | . . . . . Distress Signals . | . . . . . Times Spotted 63 | . 16 21 24 2 Peak Tracking Total 7 | . 4 7 6 2 Tactical Retreats 3 | . 1 1 1 . Traps | -11 -10 -9 -8 -8 ------- Run | Yrd Mat Mat Mat Gar Traps Triggered 2 | . 1 . . 1 Indirectly . | . . . . . Trap Hack Attempts . | . . . . . Triggered . | . . . . . Disarmed . | . . . . . Reprogrammed . | . . . . . Reused . | . . . . . Traps Extracted . | . . . . . Installed . | . . . . . Triggered . | . . . . . Machines | -11 -10 -9 -8 -8 ---------- Run | Yrd Mat Mat Mat Gar Machines Disabled 8 | . 2 2 4 . Max in Single Turn 2 | . 2 1 1 . Machines Repaired . | . . . . . Machines Dismantled . | . . . . . Machines Sabotaged . | . . . . . Overloaded Fab Kills . | . . . . . Hacking | -11 -10 -9 -8 -8 --------- Run | Yrd Mat Mat Mat Gar Machines Accessed 7 | . 2 . 5 . Terminals 6 | . 2 . 4 . Fabricators . | . . . . . Repair Stations . | . . . . . Recycling Units . | . . . . . Scanalyzers . | . . . . . Garrison Access 1 | . . . 1 . Total Hacks 14 | . 8 . 6 . Successful 8 | . 6 . 2 . Failed 6 | . 2 . 4 . Catastrophic . | . . . . . Database Lockouts . | . . . . . Manual 1 | . . . 1 . Terminals 13 | . 8 . 5 . Fabricators . | . . . . . Repair Stations . | . . . . . Recycling Units . | . . . . . Scanalyzers . | . . . . . Garrison Access 1 | . . . 1 . Terminal Hacks 7 | . 6 . 1 . Record 4 | . 4 . . . Emergency Access Points 1 | . . . 1 . Hauler Manifests 1 | . 1 . . . Zone Layout 1 | . 1 . . . Fabricator Hacks . | . . . . . Repair Station Hacks . | . . . . . Recycling Unit Hacks . | . . . . . Scanalyzer . | . . . . . Garrison Access Hacks 1 | . . . 1 . Unlock Access 1 | . . . 1 . Unauthorized Hacks . | . . . . . Terminals . | . . . . . Fabricators . | . . . . . Repair Stations . | . . . . . Recycling Units . | . . . . . Scanalyzers . | . . . . . Garrison Access . | . . . . . Data Cores Recovered . | . . . . . Used . | . . . . . Hacking Detections 4 | . 1 . 3 . Full Trace Events . | . . . . . Feedback Events . | . . . . . Feedback Blocked . | . . . . . Robot Schematics Acquired . | . . . . . Robots Built . | . . . . . Authchips . | . . . . . Time . | . . . . . Total Robot Build Rating . | . . . . . Part Schematics Acquired . | . . . . . Parts Built . | . . . . . Authchips . | . . . . . Time . | . . . . . Total Part Build Rating . | . . . . . Parts Repaired . | . . . . . Time . | . . . . . Parts Recycled . | . . . . . Recycled Matter . | . . . . . Retrieved Matter . | . . . . . Retrieved Components . | . . . . . Parts Scanalyzed . | . . . . . Part Schematics Acquired . | . . . . . Parts Damaged . | . . . . . Bothacking | -11 -10 -9 -8 -8 ------------ Run | Yrd Mat Mat Mat Gar Used RIF Installer . | . . . . . Robots Hacked . | . . . . . Non-combat . | . . . . . Combat . | . . . . . Robot Hacks Applied . | . . . . . Relay Couplers Released . | . . . . . Fabnet Peak Effective % . | . . . . . Robots Rewired . | . . . . . Allies Hacked . | . . . . . Hacks Repelled . | . . . . . Allies | -11 -10 -9 -8 -8 -------- Run | Yrd Mat Mat Mat Gar Total Allies . | . . . . . Largest Group . | . . . . . Highest-Rated Group . | . . . . . Highest-Rated Ally . | . . . . . Total Orders . | . . . . . Ally Attacks . | . . . . . Total Damage . | . . . . . Kills . | . . . . . Allies Corrupted . | . . . . . Allies Melted . | . . . . . Intel | -11 -10 -9 -8 -8 ------- Run | Yrd Mat Mat Mat Gar Robot Analysis Total . | . . . . . Derelict Logs Recovered . | . . . . . Drone Launches . | . . . . . Drone Recoveries . | . . . . . Exploration | -11 -10 -9 -8 -8 ------------- Run | Yrd Mat Mat Mat Gar Turns Passed 2736 | 123 512 368 1609 124 Spaces Moved 1609 | 74 270 173 1023 69 Core 76 | 12 18 3 42 1 Treads 457 | 62 172 121 102 . Legs 1059 | . 80 49 862 68 Wheels 17 | . . . 17 . Hover . | . . . . . Flight . | . . . . . Fastest Speed 50 | 50 120 120 100 123 Average Speed 139 | 147 147 150 134 149 Slowest Speed 400 | 160 160 250 300 400 Overloaded Moves . | . . . . . Propulsion Burnouts . | . . . . . Robots Hopped . | . . . . . Cave-ins Triggered . | . . . . . Exploration Rate (%) 23 | 5 44 18 40 12 Regions Visited 4 Branch Regions . Pre-discovered Areas . | . . . . . Known Exits Taken 1 | . . . 1 . Unknown Exits Taken 3 | 1 1 1 . . Scrap Searched . | . . . . . Spaces Dug . | . . . . . Terrain Destroyed 215 | . 18 19 152 26 Melee . | . . . . . Projectile . | . . . . . AOE 215 | . 18 19 152 26 Terrain Rammed . | . . . . . Walls Destroyed . | . . . . . Machines Disabled . | . . . . . Actions | -11 -10 -9 -8 -8 --------- Run | Yrd Mat Mat Mat Gar Total 1911 | 85 326 231 1187 82 Wait 83 | . 12 10 59 2 Move 1605 | 73 269 172 1022 69 Hop . | . . . . . Pick Up 32 | 6 6 3 16 1 Fast Attach 29 | 6 1 8 14 . Attach 20 | . 4 2 13 1 Detach 1 | . . . 1 . Swap 8 | . 1 2 3 2 Drop 16 | . 1 3 12 . Fire 105 | . 32 28 40 5 Melee . | . . . . . Ram 7 | . . . 7 . Kick 2 | . . . . 2 Crush 3 | . . 3 . . Escape Stasis . | . . . . . Rewire . | . . . . . Trap . | . . . . . Miscellaneous . | . . . . . Route ------- -11/Scrapyard -10/Materials (discovered 2 exits: [*Mat] / [*Min]) -9/Materials (discovered 2 exits: *Mat / [*Sto]) -8/Materials -8/Garrison History --------- Turn | Location | Event 22 | -11/Scrapyard | Discovered new exit (range 16) 124 | -11/Scrapyard | Entered Materials 315 | -10/Materials | Build established: Mutant 351 | -10/Materials | Core integrity fell below 50% 398 | -10/Materials | Discovered new exit (range 13) 524 | -10/Materials | Lost 3 parts (1p2n) 612 | -10/Materials | Discovered new exit (range 11) 636 | -10/Materials | Entered another Materials area 636 | -9/Materials | Evolved 2 slots: Propulsion x1, Utility x1 782 | -9/Materials | Discovered new exit (range 15) 824 | -9/Materials | Lost 4 parts (2n1u1w) 838 | -9/Materials | Discovered new exit (range 14) 1004 | -9/Materials | Entered another Materials area 1004 | -8/Materials | Evolved 2 slots: Propulsion x1, Weapon x1 1125 | -8/Materials | Build established: Scavenger-Mutant 1288 | -8/Materials | Lost 5 parts (1p3n1w) 1418 | -8/Materials | Core integrity fell below 50% 1452 | -8/Materials | Lost 10 parts (4n1u5w) 1672 | -8/Materials | Build established: Mutant 2353 | -8/Materials | Identified exit to Garrison 2415 | -8/Materials | Build established: Skirmisher 2613 | -8/Materials | Entered Garrison 2666 | -8/Garrison | Spotted B-75 Beast 2701 | -8/Garrison | Core integrity fell below 20% 2737 | -8/Garrison | Destroyed by B-75 Beast with Magnetic Acceleration Cannon Last Messages --------------- 02638_ The unstable cave ceiling collapses. 02665_ Kicked Y-45 Defender. 02666_ Y-45 Defender destroyed. 02667_ Acquired 35 matter. 02669_ Acquired Lgt. Armor Plating. 02675_ Acquired 2 matter. 02678_ Aluminum Leg destroyed. 02688_ Rocket Launcher destroyed. 02694_ Autogun destroyed. 02697_ Knocked back. 02700_ Carbon-fiber Leg destroyed. 02700_ Knocked back. 02701_ Acquired 10 matter. 02704_ Lgt. Nuclear Core destroyed. 02704_ Knocked back. 02708_ Triggered Alarm Trap. 02708_ An alarm sounds. 02712_ Lgt. Assault Rifle destroyed. 02731_ Rocket Launcher destroyed. 02734_ Titanium Leg destroyed. Map ----- +----------------------------------------------------+ | ?????????????????????????????????###?????????????? | | ????????????????????????????????? ?????????????? | | ????????????????????????????????? ?????????????? | | ?????????????????????????????????# ?????????????? | | ?????????????????????????????????# ?????????????? | | ?????????????????????????????????# ????###??????? | | ?????????????????????????????????# #???# ??????? | | ?????????????????????????????????# #???# ###????? | | ?????????????????????????????????# #??? # #????? | | ?????????????????????????????????# T??? ##???? | | ?????????????????????????????????# #??? #???? | | ???????????????????????# ######## #### ##### | | ???????????????????????# # | | ???????????????????????# # | | ????????????????????????????###### #### ## ## # | | ?????????????????????????????????# #???# #???# # | | ?????????????????????????????????# #???? #???# # | | ?????????????????????????????????# ####?? ???# # | | ?????????????????????????????????# # ????#??# # | | ????????????????????????????????? ######??# # | | ??????????????????????#######???? #??# | | ??????????????????????#! [[[#???? [ ! % % #??# | | ??????????????????????#! [#???? #??# | | ??????????????????????#! ^####;# # # #??#### | | ??????????????????????# BB ## #####?????? | | ??????????????????????#% @ BB ####?????????? | | ??????????????????????#! ^###### ##???????????? | | ??????????????????????#! ]#???#! %!#???????????? | | ??????????????????????#! ]]]#???#!% !#???????????? | | ??????????????????????#######???###"##???????????? | | ??????????????????????????????????? #????????????? | | ??????????????????????????????????? ????????????? | | ???????????????????????????????????##????????????? | | ?????????????????????????????????????????????????? | | ?????????????????????????????????????????????????? | | ?????????????????????????????????????????????????? | | ?????????????????????????????????????????????????? | | ?????????????????????????????????????????????????? | | ?????????????????????????????????????????????????? | | ?????????????????????????????????????????????????? | | ?????????????????????????????????????????????????? | | ?????????????????????????????????????????????????? | | ?????????????????????????????????????????????????? | | ?????????????????????????????????????????????????? | | ?????????????????????????????????????????????????? | | ?????????????????????????????????????????????????? | | ?????????????????????????????????????????????????? | | | | | | | +----------------------------------------------------+ Best States ------------- Heat Dissipation 45 Energy Generation 14 Energy Capacity 265 Matter Stores 300 Matter Capacity 650 Sight Range 16 Robot Scan Range 15 Terrain Scan Range 16 Terrain Scan Density 10 Armor Coverage 150 Power Shielding 66 Evasion (%) 55 Recoil Reduction 4 Item Schematics ----------------- None Robot Schematics ------------------ None Fabricated ------------ Nothing Alien Tech Used ----------------- None Achievements -------------- Remodeling Challenges ------------ None Game ------ Seed AngularDisposableTrident Manual? 0 Play Time 00:51:57 Cumulative 8.1 hours Start 2024.09.04 @ 01:12:44 End 2024.09.11 @ 20:12:04 Sessions 7 Manual Loads 0 Difficulty Rogue Special Mode None Game No. 14 Rogue 14 Adventurer 0 Explorer 0 Win Type - Total 0 Types 0/0/0/0/0/0/0/0/0 Lore% 1 Gallery% 8 Achievement% 9 Wizard Run 0 Options --------- Layout 1 ASCII 0 Keyboard 1 Movement Vi Keybinds 0 Fullscreen 2 Font 20/SmallcapsGlow Map View 60x50 Zoom Use 0% Tactical HUD 1 Map Filters NONE Filters NONE Steam 1 RUN: bb7bbf06-146d-47cc-8f50-2c4d716de22c